bitfinex-derivatives/quotes_BNBF0:USTF0_20250221
["timestamp","ask_amount","ask_price","bid_price","bid_amount"]
[1740178604975,0.28398041,645.94,645.16,1.11]
[1740178605176,0.28398041,645.93,645.16,1.11]
[1740178605369,0.28398041,645.92,645.16,1.11]
[1740178605572,0.28398041,645.91,645.16,1.11]
[1740178605769,0.28398041,646.04,645.16,1.11]
[1740178605973,2.2238729,646.03,645.16,1.11]
[1740178606173,2.19810395,646.02,645.16,1.11]
[1740178606475,2.50769668,646.01,645.16,1.11]
[1740178606675,0.28398041,646.0,645.16,1.11]
[1740178606873,0.59357793,646.0,645.16,1.11]
[1740178607070,0.28398041,645.99,645.16,1.11]
[1740178607469,0.88322634,645.98,645.16,1.11]
[1740178607770,0.28398041,645.97,645.16,1.11]
[1740178608274,1.16721378,645.96,645.16,1.11]
[1740178608475,0.28398744,645.95,645.16,1.11]
[1740178608677,0.30962628,645.94,645.16,1.11]
[1740178608870,0.28398744,645.93,645.16,1.11]
[1740178609077,0.59361851,645.93,645.16,1.11]
[1740178609376,0.28398744,645.92,645.16,1.11]
[1740178611373,0.28400183,645.91,645.16,1.11]
[1740178611574,0.28400183,645.9,645.16,1.11]
[1740178611770,0.28400183,645.89,645.16,1.11]
[1740178612076,0.28400183,645.88,645.16,1.11]
[1740178612275,0.28400183,645.92,645.16,1.11]
[1740178612475,0.28400183,645.91,645.16,1.11]
[1740178612675,0.28400183,645.92,645.16,1.11]
[1740178612876,0.28399545,645.91,645.16,1.11]
[1740178613072,0.28399545,645.92,645.16,1.11]
[1740178613276,0.28399545,645.91,645.16,1.11]
[1740178613471,0.28399545,645.92,645.16,1.11]
[1740178613673,0.28399545,645.91,645.16,1.11]
[1740178613878,0.28399545,645.9,645.16,1.11]
[1740178614082,0.28399545,645.92,645.16,1.11]
[1740178614476,0.28399151,645.91,645.16,1.11]
[1740178614678,0.28399151,645.9,645.16,1.11]
[1740178614877,0.28399151,645.89,645.16,1.11]
[1740178615179,0.28399151,645.88,645.16,1.11]
[1740178615380,0.28399151,645.92,645.16,1.11]
[1740178615577,0.28399151,645.91,645.16,1.11]
[1740178615778,0.28399151,645.92,645.16,1.11]
[1740178615980,0.30963107,645.93,645.16,1.11]
[1740178616181,0.28399579,645.92,645.16,1.11]
[1740178616582,0.28399579,645.92,644.34,1.40620362]
[1740178616781,0.28399579,645.92,644.35,0.28490006]
[1740178617080,0.28399579,645.92,644.37,0.31038068]
[1740178617284,0.28399579,645.92,644.38,0.28490006]
[1740178617477,0.28399579,645.92,644.38,1.40590006]
[1740178617677,0.28399579,645.92,644.39,0.28490006]
[1740178618277,0.28399579,645.92,644.41,0.31036141]
[1740178618480,0.28399579,645.92,644.42,0.28490006]
[1740178619483,0.28399579,645.92,644.44,0.31034696]
[1740178619682,0.28399579,645.92,644.45,0.28490006]
[1740178619982,0.28399579,645.92,644.47,0.31033252]
[1740178620181,0.28399579,645.92,644.48,0.28490006]
[1740178620483,0.28399579,645.92,644.5,0.31031807]
[1740178620784,0.28399579,645.92,644.51,0.28490006]
[1740178620983,0.28399579,645.92,644.53,0.31030363]
[1740178621181,0.28399579,645.92,644.54,0.28490006]
[1740178621378,0.28399579,645.92,644.55,0.310294]
[1740178621579,0.28399579,645.92,644.56,0.28490006]
[1740178621779,0.28399579,645.92,644.58,0.31027956]
[1740178621979,0.28399579,645.92,644.59,0.28490006]
[1740178622180,0.28399579,645.92,644.61,0.31026512]
[1740178622383,0.28399579,645.92,644.62,0.28490006]
[1740178622687,0.28399579,645.92,644.38,1.121]
[1740178622688,0.28398151,645.91,644.63,0.59511912]
[1740178622885,0.28398151,645.9,644.64,0.59511431]
[1740178623184,0.28398151,645.89,644.65,0.59510949]
[1740178623389,0.28398151,645.88,644.66,0.59510468]
[1740178623581,0.28398151,645.88,644.67,0.31023624]
[1740178623785,0.28398151,645.87,644.68,0.28486363]
[1740178623981,0.28398151,645.92,644.69,0.31022662]
[1740178624178,0.28398151,645.91,644.7,0.28486363]
[1740178624387,0.28398151,645.9,644.71,0.31021699]
[1740178624680,0.30963107,645.93,644.71,0.31021699]
[1740178624681,0.28398151,645.89,644.72,0.28486363]
[1740178624880,0.28398151,645.92,644.73,0.31020737]
[1740178625085,0.28398151,645.91,644.74,0.28486363]
[1740178625286,0.28398151,645.9,644.75,0.31019775]
[1740178625488,0.28398151,645.89,644.76,0.28486363]
[1740178625680,0.28398151,645.92,644.77,0.31018812]
[1740178625881,0.28398151,645.91,644.78,0.28486363]
[1740178626081,0.28398151,645.9,644.78,0.59504694]
[1740178626285,0.28398151,645.89,644.79,0.28486363]
[1740178626480,0.28398151,645.92,644.79,0.28486363]
[1740178626684,0.28398151,645.91,644.79,0.28486363]
[1740178626889,0.30963107,645.93,644.79,0.28486363]
[1740178626890,0.28398151,645.92,644.79,0.28486363]
[1740178627089,0.30963107,645.93,644.79,0.28486363]
[1740178627090,0.28398151,645.91,644.79,0.28486363]
[1740178627282,0.28398151,645.92,644.79,0.28486363]
[1740178627487,0.28398151,645.91,644.79,0.28486363]
[1740178627688,0.28398151,645.9,644.79,0.28486363]
[1740178627889,0.28398151,645.89,644.79,0.28486363]
[1740178628191,0.28398151,645.88,644.79,0.28486363]
[1740178628390,0.28398151,645.92,644.79,0.28486363]
[1740178631689,0.28398562,645.91,644.8,0.28493584]
[1740178631889,0.28398562,645.9,644.81,0.28493584]
[1740178632093,0.28398562,645.92,644.79,0.28493584]
[1740178632296,0.28398562,645.91,644.8,0.28493584]
[1740178632591,0.28398562,645.9,644.81,0.28493584]
[1740178632897,0.28398562,645.89,644.82,0.28493584]
[1740178633089,0.28398562,645.92,644.79,0.28493584]
[1740178633292,0.28398562,645.91,644.78,0.31018331]
[1740178633594,0.28398562,645.9,644.79,0.28493551]
[1740178633794,0.28398562,645.89,644.79,0.28493551]
[1740178633995,0.28398562,645.92,644.79,0.28493551]
[1740178634194,0.28398562,645.91,644.79,0.28493551]
[1740178634394,0.28398562,645.9,644.79,0.28493551]
[1740178634594,0.28398562,645.89,644.79,0.28493551]
[1740178634793,0.30963107,645.93,644.79,0.28493551]
[1740178634794,0.28398562,645.92,644.79,0.28493551]
[1740178634994,0.28398562,645.92,644.79,0.3101785]
[1740178635397,0.30963107,645.93,644.79,0.3101785]
[1740178635595,0.28397582,645.92,644.79,0.3101785]
[1740178639701,0.28398725,645.91,644.79,0.3101785]
[1740178639901,0.28398725,645.9,644.79,0.3101785]
[1740178640203,0.28398725,645.89,644.79,0.3101785]
[1740178640502,0.28398725,645.88,644.79,0.3101785]
[1740178640699,0.30963107,645.93,644.79,0.3101785]
[1740178640700,0.28398725,645.92,644.79,0.3101785]
[1740178640906,0.28398732,645.91,644.79,0.3101785]
[1740178641105,0.28398732,645.92,644.79,0.3101785]
[1740178641307,0.30963107,645.93,644.79,0.3101785]
[1740178641507,0.28398151,645.92,644.79,0.3101785]
[1740178642809,0.30963107,645.93,644.79,0.3101785]
[1740178643010,0.28397861,645.92,644.79,0.3101785]
[1740178644309,0.30963107,645.93,644.79,0.3101785]
[1740178644509,0.88412846,645.91,644.79,0.3101785]
[1740178644709,0.88412846,645.91,644.79,1.3181785]
[1740178644910,0.28398076,645.9,644.8,0.28493099]
[1740178645409,0.28398076,645.89,644.8,0.28493099]
[1740178645612,0.28398076,645.88,644.8,0.28493099]
[1740178645808,0.28398076,645.92,644.8,0.28493099]
[1740178646010,0.28398076,645.91,644.79,1.3181785]
[1740178646212,0.28398076,645.92,644.79,1.3181785]
[1740178646405,0.28398076,645.91,644.79,1.3181785]
[1740178646712,0.28398076,645.9,644.79,1.3181785]
[1740178647106,0.28398076,645.89,644.79,1.3181785]
[1740178647308,0.28398076,645.92,644.8,0.28493307]
[1740178647509,0.28398076,645.91,644.8,0.28493307]
[1740178647706,0.88477934,645.9,644.8,0.28493307]
[1740178647910,0.28398076,645.89,644.8,0.28493307]
[1740178648512,0.28398076,645.88,644.79,1.3181785]
[1740178648712,0.28398076,645.87,644.79,1.3181785]
[1740178648911,0.28398076,645.92,644.79,1.3181785]
[1740178649214,0.28397826,645.91,644.8,0.28492849]
[1740178649413,1.42303768,645.9,644.8,0.31017369]
[1740178649709,0.28397826,645.89,644.8,0.31017369]
[1740178649913,1.16924518,645.89,644.8,0.31017369]
[1740178650213,0.28397826,645.88,644.8,0.31017369]
[1740178650614,1.16924518,645.88,644.8,0.31017369]
[1740178650813,1.16924518,645.87,644.8,0.31017369]
[1740178651012,0.28397826,645.86,644.8,0.31017369]
[1740178651409,0.28397826,645.92,644.8,0.31017369]
[1740178651612,2.20337054,645.91,644.8,0.31017369]
[1740178651812,2.20337054,645.9,644.8,0.31017369]
[1740178652013,3.08913937,645.89,644.8,0.31017369]
[1740178652318,2.20360154,645.88,644.8,0.31017369]
[1740178652509,1.13968428,645.87,644.8,0.31017369]
[1740178652913,0.88576883,645.86,644.8,0.31017369]
[1740178653508,0.88576883,645.92,644.8,0.31017369]
[1740178653713,2.20434715,645.91,644.8,0.31017369]
[1740178653910,2.20434715,645.9,644.8,0.31017369]
[1740178654216,2.20434715,645.89,644.8,0.31017369]
[1740178654415,1.92035783,645.88,644.8,0.31017369]
[1740178654613,1.14026418,645.87,644.8,0.31017369]
[1740178654816,0.88576883,645.89,644.8,0.31017369]
[1740178655013,0.88576883,645.86,644.8,0.31017369]
[1740178655217,0.88576883,645.88,644.8,0.31017369]
[1740178655416,1.921205,645.87,644.8,0.31017369]
[1740178655715,0.88576883,645.92,644.8,0.31017369]
[1740178655916,2.20516903,645.91,644.8,0.31017369]
[1740178656111,0.88576883,645.92,644.8,0.31017369]
[1740178656112,0.88576883,645.86,644.8,0.31017369]
[1740178656317,1.92140937,645.85,644.8,0.31017369]
[1740178656514,2.8071782,645.84,644.8,0.31017369]
[1740178656718,0.88576883,645.84,644.8,0.31017369]
[1740178656917,0.30963107,645.93,644.8,0.31017369]
[1740178656918,0.88576883,645.92,644.8,0.31017369]
[1740178657118,2.20572578,645.91,644.8,0.31017369]
[1740178657318,2.20572538,645.9,644.8,0.31017369]
[1740178657512,2.20572538,645.89,644.8,0.31017369]
[1740178657713,2.20572538,645.88,644.8,0.31017369]
[1740178657918,1.92173749,645.87,644.8,0.31017369]
[1740178658119,1.92173749,645.86,644.8,0.31017369]
[1740178658321,1.92173749,645.85,644.8,0.31017369]
[1740178658620,1.42506788,645.84,644.8,0.31017369]
[1740178658821,1.42506788,645.83,644.8,0.31017369]
[1740178659021,1.42507587,645.82,644.8,0.31017369]
[1740178659320,0.88576883,645.82,644.8,0.31017369]
[1740178659515,1.14180036,645.81,644.8,0.31017369]
[1740178659714,1.14181822,645.8,644.8,0.31017369]
[1740178659915,0.88576883,645.8,644.8,0.31017369]
[1740178660319,0.30963107,645.93,644.8,0.31017369]
[1740178660320,0.88576883,645.92,644.8,0.31017369]
[1740178660519,3.45711663,645.91,644.8,0.31017369]
[1740178660716,3.45711663,645.9,644.8,0.31017369]
[1740178660919,4.34288546,645.89,644.8,0.31017369]
[1740178661119,2.20714833,645.88,644.8,0.31017369]
[1740178661314,2.20714833,645.87,644.8,0.31017369]
[1740178661518,2.20714833,645.86,644.8,0.31017369]
[1740178661713,2.20714833,645.85,644.8,0.31017369]
[1740178661921,2.20714833,645.84,644.8,0.31017369]
[1740178662121,2.20714833,645.83,644.8,0.31017369]
[1740178662323,1.42591815,645.82,644.8,0.31017369]
[1740178662519,2.313536,645.81,644.8,0.31017369]
[1740178662821,0.88761785,645.81,644.8,0.31017369]
[1740178663217,0.88761785,645.92,644.8,0.31017369]
[1740178663420,3.45752055,645.91,644.8,0.31017369]
[1740178663622,3.17352989,645.9,644.8,0.31017369]
[1740178663821,3.45752589,645.89,644.8,0.31017369]
[1740178664015,3.45752589,645.88,644.8,0.31017369]
[1740178664222,3.45752589,645.87,644.8,0.31017369]
[1740178664423,3.45752589,645.86,644.8,0.31017369]
[1740178664621,2.20739677,645.85,644.8,0.31017369]
[1740178664821,2.20739677,645.84,644.8,0.31017369]
[1740178665018,3.09501462,645.83,644.8,0.31017369]
[1740178665222,1.92340077,645.82,644.8,0.31017369]
[1740178665423,3.09502956,645.81,644.8,0.31017369]
[1740178665622,2.20724354,645.8,644.8,0.31017369]
[1740178665815,3.09486139,645.79,644.8,0.31017369]
[1740178666016,1.14193724,645.78,644.8,0.31017369]
[1740178666219,0.88761785,645.78,644.8,0.31017369]
[1740178666925,2.02948594,645.77,644.8,0.31017369]
[1740178667126,0.88761785,645.77,644.8,0.31017369]
[1740178667725,0.88761785,645.76,644.8,0.31017369]
[1740178667925,0.30963107,645.93,644.8,0.31017369]
[1740178668121,2.20703631,645.92,644.8,0.31017369]
[1740178668322,4.34434663,645.91,644.8,0.31017369]
[1740178668522,3.45692461,645.9,644.8,0.31017369]
[1740178668724,3.45692461,645.89,644.8,0.31017369]
[1740178668923,3.45692461,645.88,644.8,0.31017369]
[1740178669127,3.09445833,645.87,644.8,0.31017369]
[1740178669329,2.20703631,645.86,644.8,0.31017369]
[1740178669529,2.20703631,645.85,644.8,0.31017369]
[1740178669722,2.20703631,645.84,644.8,0.31017369]
[1740178669927,2.20703631,645.83,644.8,0.31017369]
[1740178670122,1.92302832,645.82,644.8,0.31017369]
[1740178670322,1.92302832,645.81,644.8,0.31017369]
[1740178670521,1.92302832,645.8,644.8,0.31017369]
[1740178670722,1.14184814,645.79,644.8,0.31017369]
[1740178670921,0.88742202,645.79,644.8,0.31017369]
[1740178671127,1.14181774,645.78,644.8,0.31017369]
[1740178671324,0.88742202,645.79,644.8,0.31017369]
[1740178671524,1.14178634,645.78,644.8,0.31017369]
[1740178671729,0.88742202,645.77,644.8,0.31017369]
[1740178672030,0.88742202,645.76,644.8,0.31017369]
[1740178672230,0.88742202,645.75,644.8,0.31017369]
[1740178672835,0.30963107,645.93,644.8,0.31017369]
[1740178673033,2.20683497,645.92,644.8,0.31017369]
[1740178673232,3.45659543,645.91,644.8,0.31017369]
[1740178673433,3.45659211,645.9,644.8,0.31017369]
[1740178673635,3.45650123,645.89,644.8,0.31017369]
[1740178673933,2.20677712,645.88,644.8,0.31017369]
[1740178674133,2.20677712,645.87,644.8,0.31017369]
[1740178674436,2.20677712,645.86,644.8,0.31017369]
[1740178674634,2.20677712,645.85,644.8,0.31017369]
[1740178674829,1.92277672,645.84,644.8,0.31017369]
[1740178675032,2.81010323,645.83,644.8,0.31017369]
[1740178675236,0.88732651,645.83,644.8,0.31017369]
[1740178675436,0.88732651,645.82,644.8,0.31017369]
[1740178676037,0.88732651,645.81,644.8,0.31017369]
[1740178676239,0.30963107,645.93,644.8,0.31017369]
[1740178676440,2.20657857,645.92,644.8,0.31017369]
[1740178676631,1.92259543,645.91,644.8,0.31017369]
[1740178676836,1.92259543,645.9,644.8,0.31017369]
[1740178677035,1.92259543,645.89,644.8,0.31017369]
[1740178677238,1.92259543,645.88,644.8,0.31017369]
[1740178677438,1.92259543,645.87,644.8,0.31017369]
[1740178677633,0.88721189,645.88,644.8,0.31017369]
[1740178677836,1.92259505,645.87,644.8,0.31017369]
[1740178678137,1.92259505,645.86,644.8,0.31017369]
[1740178678336,1.14159348,645.85,644.8,0.31017369]
[1740178678537,0.88721189,645.85,644.8,0.31017369]
[1740178678836,1.14159886,645.84,644.8,0.31017369]
[1740178679036,0.88721189,645.92,644.8,0.31017369]
[1740178679338,2.20658731,645.91,644.8,0.31017369]
[1740178679539,1.92260412,645.9,644.8,0.31017369]
[1740178679838,2.80981601,645.89,644.8,0.31017369]
[1740178680037,1.92260412,645.88,644.8,0.31017369]
[1740178680238,1.92260412,645.87,644.8,0.31017369]
[1740178680438,0.88721189,645.88,644.8,0.31017369]
[1740178680834,0.88721189,645.92,644.8,0.31017369]
[1740178681039,0.28398445,645.91,644.8,0.31017369]
[1740178681239,0.88721189,645.92,644.8,0.31017369]
[1740178681540,0.88721189,645.9,644.8,0.31017369]
[1740178682039,0.88721189,645.92,644.8,0.31017369]
[1740178682339,0.28398739,645.91,644.8,0.31017369]
[1740178682639,0.28398411,645.9,644.8,0.31017369]
[1740178682840,0.28398411,645.91,644.8,0.31017369]
[1740178683032,0.88721189,645.89,644.8,0.31017369]
[1740178683237,0.28398411,645.88,644.8,0.31017369]
[1740178683938,0.28398411,645.87,644.8,0.31017369]
[1740178684140,0.28398411,645.92,644.8,0.31017369]
[1740178684439,1.17127083,645.91,644.8,0.31017369]
[1740178684640,0.28398411,645.9,644.8,0.31017369]
[1740178685039,0.88728672,645.89,644.8,0.31017369]
[1740178685339,0.28398411,645.88,644.8,0.31017369]
[1740178685539,0.28398411,645.87,644.8,0.31017369]
[1740178685740,0.28398411,645.86,644.8,0.31017369]
[1740178685942,0.28398411,645.92,644.8,0.31017369]
[1740178686141,2.31294242,645.91,644.8,0.31017369]
[1740178686342,0.28398411,645.9,644.8,0.31017369]
[1740178686734,0.88729194,645.89,644.8,0.31017369]
[1740178686936,0.28398411,645.88,644.8,0.31017369]
[1740178687537,0.28398411,645.87,644.8,0.31017369]
[1740178687742,0.28398411,645.86,644.8,0.31017369]
[1740178688041,0.28398411,645.85,644.8,0.31017369]
[1740178688237,0.28398411,645.92,644.8,0.31017369]
[1740178688439,1.42567232,645.91,644.8,0.31017369]
[1740178688742,0.2839887,645.9,644.8,0.31017369]
[1740178688936,0.2839887,645.92,644.8,0.31017369]
[1740178689137,0.88731219,645.89,644.8,0.31017369]
[1740178689336,2.31299431,645.88,644.8,0.31017369]
[1740178689641,0.2839887,645.87,644.8,0.31017369]
[1740178689836,1.17130089,645.87,644.8,1.28617369]
[1740178690040,0.2839887,645.86,644.8,1.28617369]
[1740178690543,1.17131953,645.85,644.8,1.28617369]
[1740178690745,0.28400734,645.84,644.8,1.28617369]
[1740178691243,0.28400734,645.92,644.8,1.28617369]
[1740178691438,0.28400734,645.83,644.8,1.28617369]
[1740178691639,0.30963107,645.93,644.8,1.28617369]
[1740178691843,0.88733946,645.91,644.8,1.28617369]
[1740178692241,0.30963107,645.93,644.8,1.28617369]
[1740178692242,0.88733946,645.9,644.8,1.28617369]
[1740178692845,0.88733946,645.89,644.8,1.28617369]
[1740178693846,0.88733946,645.88,644.8,1.28617369]
[1740178694041,0.88733946,645.87,644.8,1.28617369]
[1740178694346,0.88733946,645.86,644.8,1.28617369]
[1740178694547,0.30963107,645.93,644.8,1.28617369]
[1740178694742,1.92278251,645.92,644.8,1.28617369]
[1740178694944,2.81010909,645.91,644.8,1.28617369]
[1740178695145,1.14170326,645.9,644.8,1.28617369]
[1740178695343,0.88732658,645.89,644.8,1.28617369]
[1740178695948,0.88732658,645.92,644.8,1.28617369]
[1740178696149,1.14172239,645.91,644.8,1.28617369]
[1740178696350,2.02904897,645.9,644.8,1.28617369]
[1740178696649,0.88732658,645.9,644.8,1.28617369]
[1740178697150,0.88732658,645.92,644.8,1.28617369]
[1740178697350,1.92284857,645.91,644.8,1.28617369]
[1740178697550,1.14174265,645.9,644.8,1.28617369]
[1740178697750,1.14174265,645.89,644.8,1.28617369]
[1740178697951,0.88732658,645.89,644.8,1.28617369]
[1740178698447,0.88732658,645.92,644.8,1.28617369]
[1740178698653,1.92290437,645.91,644.8,1.28617369]
[1740178698854,1.14177577,645.9,644.8,1.28617369]
[1740178699153,1.14177851,645.89,644.8,1.28617369]
[1740178699354,1.14177851,645.88,644.8,1.28617369]
[1740178699553,0.88732658,645.89,644.8,1.28617369]
[1740178699855,1.9229623,645.88,644.8,1.28617369]
[1740178700054,0.88732658,645.92,644.8,1.28617369]
[1740178700352,2.20696871,645.91,644.8,1.28617369]
[1740178700550,2.20696871,645.9,644.8,1.28617369]
[1740178700748,2.20696871,645.89,644.8,1.28617369]
[1740178700952,1.14181096,645.88,644.8,1.28617369]
[1740178701249,1.14179579,645.87,644.8,1.28617369]
[1740178701448,0.28400297,645.86,644.8,1.28617369]
[1740178701648,0.28400297,645.87,644.8,1.28617369]
[1740178701850,0.88732658,645.86,644.8,1.28617369]
[1740178702051,0.28400297,645.85,644.8,1.28617369]
[1740178702250,0.28400297,645.85,644.81,0.28494028]
[1740178702851,0.28400297,645.92,644.81,0.28494028]
[1740178703058,1.14174889,645.91,644.81,0.28494028]
[1740178703250,1.42575186,645.9,644.81,0.28494028]
[1740178703452,0.28398767,645.89,644.82,0.2849379]
[1740178703654,0.28398767,645.89,644.8,1.28617369]
[1740178703856,0.88736589,645.88,644.81,0.28494315]
[1740178704155,0.28398767,645.87,644.81,0.28494315]
[1740178704355,0.28398767,645.87,644.8,1.28617369]
[1740178704555,1.92302917,645.86,644.8,1.28617369]
[1740178704756,1.42584752,645.85,644.8,1.28617369]
[1740178704957,1.14185985,645.84,644.8,1.28617369]
[1740178705159,0.28400619,645.83,644.8,1.28617369]
[1740178705349,1.17137208,645.83,644.8,1.28617369]
[1740178705551,0.88736589,645.83,644.8,1.28617369]
[1740178705751,0.28400619,645.82,644.8,1.28617369]
[1740178706551,0.28400619,645.92,644.8,1.28617369]
[1740178706753,2.20693757,645.91,644.8,1.28617369]
[1740178706954,3.09433653,645.9,644.8,1.28617369]
[1740178707156,2.20693757,645.89,644.8,1.28617369]
[1740178707354,0.88739896,645.9,644.8,1.28617369]
[1740178707355,1.92292427,645.88,644.8,1.28617369]
[1740178707555,2.20694266,645.87,644.8,1.28617369]
[1740178707754,3.09434162,645.86,644.8,1.28617369]
[1740178707955,0.28401839,645.85,644.8,1.28617369]
[1740178708353,0.88739896,645.84,644.8,1.28617369]
[1740178708557,0.30963107,645.93,644.8,1.28617369]
[1740178708759,2.20675086,645.92,644.8,1.28617369]
[1740178708960,2.20675086,645.91,644.8,1.28617369]
[1740178709162,2.31299426,645.9,644.8,1.28617369]
[1740178709361,0.28399297,645.89,644.8,1.28617369]
[1740178709563,1.14174241,645.88,644.8,1.28617369]
[1740178709765,0.28399297,645.87,644.8,1.28617369]
[1740178710063,1.17131392,645.86,644.8,1.28617369]
[1740178710259,0.28400153,645.85,644.8,1.28617369]
[1740178710458,1.17131392,645.85,644.8,1.28617369]
[1740178710659,0.28400153,645.84,644.8,1.28617369]
[1740178710859,0.88731239,645.83,644.8,1.28617369]
[1740178711063,0.28400153,645.82,644.8,1.28617369]
[1740178711463,0.30963107,645.93,644.8,1.28617369]
[1740178711666,2.20692027,645.92,644.8,1.28617369]
[1740178711859,2.20692027,645.91,644.8,1.28617369]
[1740178712064,2.20692027,645.9,644.8,1.28617369]
[1740178712259,3.09429243,645.89,644.8,1.28617369]
[1740178712465,2.20692027,645.88,644.8,1.28617369]
[1740178712760,2.20692027,645.87,644.8,1.28617369]
[1740178712966,1.42578769,645.86,644.8,1.28617369]
[1740178713267,0.2840136,645.85,644.8,1.28617369]
[1740178713568,1.17138576,645.84,644.8,1.28617369]
[1740178713866,0.2840136,645.83,644.8,1.28617369]
[1740178714367,0.2840136,645.82,644.8,1.28617369]
[1740178714666,0.2840136,645.81,644.8,1.28617369]
[1740178714866,0.28400726,645.8,644.8,1.28617369]
[1740178715061,0.28400726,645.92,644.8,1.28617369]
[1740178715261,2.20678253,645.91,644.8,1.28617369]
[1740178715464,2.20678253,645.9,644.8,1.28617369]
[1740178715666,2.20678253,645.89,644.8,1.28617369]
[1740178715967,2.20678253,645.88,644.8,1.28617369]
[1740178716166,2.20678253,645.87,644.8,1.28617369]
[1740178716368,1.92277511,645.86,644.8,1.28617369]
[1740178716666,1.42571161,645.85,644.8,1.28617369]
[1740178716866,0.28401442,645.84,644.8,1.28617369]
[1740178717066,0.28401442,645.86,644.8,1.28617369]
[1740178717261,0.88733029,645.83,644.8,1.28617369]
[1740178717464,0.28401442,645.82,644.8,1.28617369]
[1740178717866,0.28401442,645.81,644.8,1.28617369]
[1740178718065,0.28401442,645.86,644.8,1.28617369]
[1740178718268,1.42566023,645.85,644.8,1.28617369]
[1740178718470,1.17131525,645.84,644.8,1.28617369]
[1740178718669,0.28401442,645.83,644.8,1.28617369]
[1740178718869,1.92274771,645.82,644.8,1.28617369]
[1740178719070,2.20676213,645.81,644.8,1.28617369]
[1740178719270,3.09406296,645.8,644.8,1.28617369]
[1740178719471,2.20676213,645.79,644.8,1.28617369]
[1740178719672,2.20676213,645.78,644.8,1.28617369]
[1740178719873,2.20676213,645.77,644.8,1.28617369]
[1740178720068,2.20676213,645.76,644.8,1.28617369]
[1740178720272,2.20676213,645.75,644.8,1.28617369]
[1740178720465,2.20676213,645.74,644.8,1.28617369]
[1740178720670,2.20676213,645.73,644.8,1.28617369]
[1740178720870,2.20637233,645.72,644.8,1.28617369]
[1740178721071,1.42566981,645.71,644.8,1.28617369]
[1740178721270,1.42476074,645.7,644.8,0.976]
[1740178721467,2.20523414,645.69,644.8,0.976]
[1740178721671,1.42476074,645.68,644.8,0.976]
[1740178721871,0.28401442,645.67,644.8,0.976]
[1740178722271,1.14025534,645.66,644.8,0.976]
[1740178722574,0.28401442,645.65,644.8,0.976]
[1740178722767,0.88730083,645.66,644.8,0.976]
[1740178722973,0.88730083,645.64,644.8,0.976]
[1740178723173,0.28412064,645.63,644.8,0.976]
[1740178723770,1.53179373,645.86,644.8,0.976]
[1740178723973,3.0896317,645.85,644.8,0.976]
[1740178724167,1.91958432,645.84,644.8,0.976]
[1740178724368,1.91958432,645.83,644.8,0.976]
[1740178724574,1.91958432,645.82,644.8,0.976]
[1740178724775,1.13946666,645.81,644.8,0.976]
[1740178725075,0.88592674,645.8,644.8,0.976]
[1740178725774,0.88592674,645.79,644.8,0.976]
[1740178726174,0.88592674,645.78,644.8,0.976]
[1740178726877,0.28405298,645.77,644.8,0.976]
[1740178727272,0.28405298,645.76,644.8,0.976]
[1740178727476,0.792,645.87,644.8,0.976]
[1740178727676,3.39781734,645.86,644.8,0.976]
[1740178727877,2.20269815,645.85,644.8,0.976]
[1740178728078,2.20269815,645.84,644.8,0.976]
[1740178728273,2.20269815,645.83,644.8,0.976]
[1740178728474,1.73297734,645.82,644.8,0.976]
[1740178728672,0.59374694,645.81,644.8,0.976]
[1740178728875,0.28405834,645.8,644.8,0.976]
[1740178729077,1.1695129,645.8,644.8,0.976]
[1740178729278,0.28405858,645.79,644.8,0.976]
[1740178729874,0.88545456,645.78,644.8,0.976]
[1740178730081,2.5122765,645.77,644.8,0.976]
[1740178730284,2.20256871,645.76,644.8,0.976]
[1740178730576,2.30866797,645.75,644.8,0.976]
[1740178730781,1.42305033,645.74,644.8,0.976]
[1740178730981,1.42307227,645.73,644.8,0.976]
[1740178731280,0.28405858,645.72,644.8,0.976]
[1740178731673,0.88545456,645.71,644.8,0.976]
[1740178731880,0.28405858,645.7,644.8,0.976]
[1740178732980,0.28405858,645.69,644.8,0.976]
[1740178733180,0.30970779,645.77,644.8,0.976]
[1740178733181,0.28405858,645.68,644.8,0.976]
[1740178733380,0.28405858,645.67,644.8,0.976]
[1740178733580,0.28405858,645.66,644.8,0.976]
[1740178733776,0.28405858,645.76,644.8,0.976]
[1740178733975,1.91722679,645.75,644.8,0.976]
[1740178734177,1.16874438,645.74,644.8,0.976]
[1740178734377,1.73198953,645.73,644.8,0.976]
[1740178734576,0.59379035,645.72,644.8,0.976]
[1740178734780,0.59379514,645.71,644.8,0.976]
[1740178734979,0.59379994,645.7,644.8,0.976]
[1740178735183,0.59380474,645.69,644.8,0.976]
[1740178735482,0.28405858,645.68,644.8,0.976]
[1740178735682,0.28411087,645.67,644.8,0.976]
[1740178735977,0.28411087,645.66,644.8,0.976]
[1740178736178,0.28411087,645.65,644.8,0.976]
[1740178736382,0.28411087,645.64,644.8,0.976]